fUST/lending_fUST_20250108
["ID","MTS","AMOUNT","RATE_DAILY","PERIOD"]
[348104110,1736315443692,-851.76122493,0.00022979,2]
[348104112,1736315443701,-234.93,0.00023,2]
[348104114,1736315443711,-9021.32808633,0.00023,2]
[348104116,1736315443720,-153.03,0.00023,31]
[348104118,1736315443729,-153.03,0.00023,31]
[348104120,1736315443738,-153.03,0.00023,31]
[348104122,1736315443747,-153.03,0.00023,31]
[348104124,1736315443757,-153.03,0.00023,31]
[348104126,1736315443767,-153.03,0.00023,31]
[348104128,1736315443777,-15794.02627163,0.00023,2]
[348104390,1736315446300,-500.0,0.00021554,3]
[348104392,1736315446310,-500.0,0.00021828,3]
[348104394,1736315446319,-500.0,0.00022102,3]
[348104396,1736315446328,-111.57430093,0.00023,2]
[348104398,1736315446339,-3157.23894096,0.00023,2]
[348105430,1736315988527,167.060899,0.00013973,2]
[348105432,1736316376215,195.0,0.00025,120]
[348105433,1736316443175,-572.52360636,0.00016,60]
[348105434,1736316446086,-181.31607696,0.00016,60]
[348105435,1736316550090,-1757.16031668,0.00016,60]
[348105436,1736316550111,-302.8788636,0.00018252,2]
[348105437,1736316550133,-228.30001972,0.00018436,2]
[348105438,1736316557170,-74.57884388,0.00018436,2]
[348105439,1736316557192,-464.07068454,0.000189,2]
[348105440,1736316557217,-150.0,0.00019233,2]
[348105441,1736316557239,-3332.0,0.0002,2]
[348105442,1736316557261,-327.163579,0.00020035,2]
[348105443,1736316557283,-3208.0,0.0002054,2]
[348105444,1736316557305,-7411.4595411,0.00020541,2]
[348105445,1736316557328,-500.0,0.00020899,3]
[348105446,1736316557351,-500.0,0.00020899,3]
[348105447,1736316557376,-379.39608533,0.00020899,3]
[348105448,1736316557397,-500.0,0.00020899,3]
[348105449,1736316557422,-336.05370775,0.00020899,3]
[348105450,1736316557444,-1500.0,0.000209,2]
[348105451,1736316557464,-1039.93471154,0.000209,2]
[348105452,1736316574317,-349.4778,0.00020691,2]
[348105493,1736316632644,-82.425,0.00020691,2]
[348105496,1736316632655,-12.36167793,0.00020691,2]
[348105498,1736316632665,-460.06528846,0.000209,2]
[348105500,1736316632675,-150.0,0.00021,2]
[348105502,1736316632684,-786.08,0.00021006,3]
[348105504,1736316632694,-500.0,0.00021068,2]
[348105506,1736316632703,-500.0,0.00021173,3]
[348105508,1736316632713,-589.44,0.00021173,3]
[348105510,1736316632722,-500.0,0.00021173,3]
[348105512,1736316632732,-179.0755169,0.0002125,2]
[348105514,1736316632742,-786.08,0.0002128,3]
[348105516,1736316632752,-500.0,0.00021447,3]
[348105518,1736316632761,-500.0,0.00021447,3]
[348105520,1736316632771,-300.0,0.00021552,2]
[348105522,1736316632779,-314.7995627,0.00021554,3]
[348105524,1736316632791,-715.9004373,0.00021554,3]
[348105526,1736316632800,-786.08,0.00021554,3]
[348105528,1736316632809,-500.0,0.00021555,2]
[348105530,1736316632818,-500.0,0.00021555,3]
[348105532,1736316632828,-3232.44,0.00021555,3]
[348105534,1736316632838,-500.0,0.00021555,3]
[348105536,1736316632847,-164.10714724,0.00021555,3]
[348105538,1736316632856,-500.0,0.00021555,3]
[348105540,1736316632865,-501.98551099,0.00021555,3]
[348105542,1736316632875,-2579.39980821,0.000216,4]
[348105544,1736316632886,-752.60019179,0.000216,4]
[348105546,1736316632895,-449.89980621,0.00021721,3]
[348105548,1736316632907,-50.10019379,0.00021721,3]
[348105550,1736316632917,-500.0,0.00021721,3]
[348105552,1736316632927,-500.0,0.000218,2]
[348105554,1736316632936,-713.64,0.00021827,3]
[348105556,1736316632947,-500.0,0.00021827,3]
[348105558,1736316632956,-647.12562568,0.00021827,3]
[348105560,1736316632967,-1030.7,0.00021828,3]
[348105561,1736316632976,-786.08,0.00021828,3]
[348105563,1736316632986,-3232.44,0.00021829,3]
[348105565,1736316632995,-172.381,0.0002183,2]
[348105567,1736316633006,-639.944,0.0002187,2]
[348105569,1736316633015,-195.38,0.00021995,3]
[348105571,1736316633024,-318.67337927,0.00022002,2]
[348105573,1736316633035,-371.23580126,0.00022055,2]
[348105653,1736316638660,-334.22418034,0.00022055,2]
[348105655,1736316638669,-619.85581906,0.000221,2]
[348105658,1736316638681,-880.14418094,0.000221,2]
[348105661,1736316638691,-713.64,0.00022101,3]
[348105664,1736316638700,-500.0,0.00022101,3]
[348105666,1736316638710,-1030.7,0.00022102,3]
[348105668,1736316638719,-786.08,0.00022102,3]
[348105670,1736316638731,-3232.44,0.00022103,3]
[348105673,1736316638741,-318.67337927,0.00022134,2]
[348105676,1736316638751,-318.67337927,0.00022266,2]
[348105678,1736316638760,-7088.76544936,0.00022273,2]
[348105680,1736316638769,-927.42697317,0.00022348,2]
[348105682,1736316638779,-713.64,0.00022375,3]
[348105684,1736316638788,-500.0,0.00022375,3]
[348105698,1736316638908,-1030.7,0.00022376,3]
[348105700,1736316638918,-786.08,0.00022376,3]
[348105702,1736316638930,-3232.44,0.00022377,3]
[348105704,1736316638939,-318.67337927,0.00022398,2]
[348105706,1736316638956,-314.59484209,0.00022473,2]
[348105708,1736316638966,-500.85334312,0.00022473,2]
[348105710,1736316638976,-179.52384913,0.00022473,2]
[348105712,1736316638986,-500.0,0.00022499,2]
[348105714,1736316638996,-500.0,0.00022499,2]
[348105716,1736316639006,-500.0,0.00022499,2]
[348105718,1736316639016,-500.0,0.00022499,2]
[348105720,1736316639025,-500.0,0.00022499,2]
[348105722,1736316639035,-500.0,0.00022499,2]
[348105724,1736316639045,-500.0,0.00022499,2]
[348105726,1736316639054,-500.0,0.00022499,2]
[348105728,1736316639064,-500.0,0.00022499,2]
[348105730,1736316639073,-215.31927103,0.00022499,2]
[348105732,1736316639083,-500.0,0.00022499,2]
[348105734,1736316639092,-500.0,0.00022499,2]
[348105736,1736316639101,-392.00725285,0.00022499,2]
[348105738,1736316639111,-500.0,0.00022499,2]
[348105740,1736316639121,-500.0,0.00022499,2]
[348105742,1736316639131,-500.0,0.00022499,2]
[348105744,1736316639140,-449.84219504,0.00022499,2]
[348105746,1736316639150,-388.33418101,0.00022499,2]
[348105748,1736316639159,-14696.66437194,0.000225,3]
[348106161,1736316643500,-8107.58763838,0.000225,3]
[348106163,1736316643510,-2257.42594201,0.000225,3]
[348106165,1736316643519,-1747.00112984,0.000225,2]
[348106168,1736316643534,-623.69889692,0.000225,2]
[348106180,1736316643643,-2377.8310549,0.000225,2]
[348106405,1736316646508,-369.10010123,0.000225,2]
[348106414,1736316646587,-20.14623077,0.000225,2]
[348106781,1736317121281,167.937551,0.00013973,2]
[348106786,1736317644138,-151.31214194,0.000189,2]
[348106792,1736317747129,-502.22639786,0.000187,2]
[348106793,1736317747151,-158.06831442,0.000189,2]
[348106794,1736317747172,-241.30528772,0.00019,2]
[348106795,1736317754155,-61.301366,0.00019,2]
[348106796,1736317754176,-302.60665372,0.0001919,2]
[348106797,1736317754196,-302.60665372,0.0001938,2]
[348106798,1736317754218,-303.69549323,0.0001957,2]
[348106799,1736317754238,-165.583478,0.00019928,2]
[348106800,1736317754259,-300.0,0.00019999,2]
[348106801,1736317754281,-50.39192219,0.00019999,2]
[348106802,1736317760202,-2063.60807781,0.00019999,2]
[348106803,1736317760225,-10915.59497695,0.0002,2]
[348106804,1736317760247,-1250.1551929,0.00020327,2]
[348106805,1736317760270,-370.757507,0.00020511,2]
[348106806,1736317760293,-2837.4236264,0.0002056,2]
[348106807,1736317760315,-355.09165201,0.00020629,2]
[348106808,1736317767108,-229.69103296,0.00020629,2]
[348106867,1736317836587,-141.84889803,0.00020629,2]
[348106868,1736317836596,-153.0,0.00020889,2]
[348106869,1736317836605,-500.0,0.00020899,3]
[348106870,1736317836615,-170.98110197,0.00020899,3]
[348106871,1736317836628,-329.01889803,0.00020899,3]
[348106872,1736317836637,-1500.0,0.000209,2]
[348106873,1736317836647,-250.0,0.00020972,2]
[348106874,1736317836656,-500.0,0.00021068,2]
[348106875,1736317836665,-500.0,0.00021173,3]
[348106876,1736317836675,-155.76,0.00021445,2]
[348106877,1736317836684,-500.0,0.00021447,3]
[348106878,1736317836694,-159.33668967,0.00021455,2]
[348106879,1736317836704,-385.41584903,0.000215,2]
[348106880,1736317836716,-300.0,0.00021553,2]
[348106881,1736317836725,-566.65,0.00021554,3]
[348106882,1736317836734,-2750.27,0.00021554,3]
[348106883,1736317836744,-500.0,0.00021555,3]
[348106884,1736317836754,-500.0,0.00021555,3]
[348106885,1736317836763,-500.0,0.00021555,3]
[348106886,1736317836773,-500.0,0.00021555,3]
[348106887,1736317836787,-500.0,0.00021555,3]
[348106888,1736317836797,-500.0,0.00021555,3]
[348106889,1736317836807,-500.0,0.00021555,3]
[348106890,1736317836817,-159.33668963,0.00021666,2]
[348106891,1736317836828,-188.65105198,0.0002172,2]
[348106892,1736317836838,-303.47131887,0.0002172,3]
[348106893,1736317836847,-500.0,0.0002172,3]
[348106894,1736317836858,-500.0,0.0002172,3]
[348106895,1736317836868,-500.0,0.0002172,3]
[348106896,1736317836879,-500.0,0.0002172,3]
[348106897,1736317836889,-500.0,0.0002172,3]
[348106898,1736317836898,-500.0,0.0002172,3]
[348106899,1736317836907,-500.0,0.0002172,3]
[348106900,1736317836917,-500.0,0.0002172,3]
[348106901,1736317836926,-500.0,0.00021721,3]
[348106902,1736317836935,-981.28,0.00021827,3]
[348106903,1736317836945,-415.32363704,0.00021827,3]
[348106904,1736317836957,-84.67636296,0.00021827,3]
[348106905,1736317836966,-591.29,0.00021828,3]
[348106906,1736317836975,-566.65,0.00021828,3]
[348106907,1736317836984,-500.0,0.00021828,3]
[348106908,1736317836994,-228.04391185,0.00021828,3]
[348106909,1736317837004,-500.0,0.00021828,3]
[348106910,1736317837014,-2750.27,0.00021828,3]
[348106911,1736317837023,-500.0,0.00021828,3]
[348106912,1736317837032,-175.496,0.00021829,2]
[348106913,1736317837042,-613.0,0.0002187,2]
[348106914,1736317837052,-159.33668963,0.00021876,2]
[348106915,1736317837062,-500.0,0.00021995,3]
[348106916,1736317837071,-265.37046456,0.00021999,2]
[348106917,1736317837089,-551.80941694,0.00021999,2]
[348106918,1736317837102,-500.0,0.00021999,2]
[348106919,1736317837112,-329.27160728,0.00021999,2]
[348106920,1736317837123,-343.67958064,0.00021999,2]
[348106921,1736317837133,-500.0,0.00021999,2]
[348106922,1736317837143,-500.0,0.00021999,2]
[348106923,1736317837153,-500.0,0.00021999,2]
[348106924,1736317837163,-415.94657604,0.00021999,2]
[348106925,1736317837173,-500.0,0.00021999,2]
[348106926,1736317837183,-500.0,0.00021999,2]
[348106927,1736317837193,-500.0,0.00021999,2]
[348106928,1736317837203,-500.0,0.00021999,2]
[348106929,1736317837213,-500.0,0.00021999,2]
[348106930,1736317837222,-500.0,0.00021999,2]
[348106931,1736317837232,-500.0,0.00021999,2]
[348106932,1736317837241,-500.0,0.00021999,2]
[348106933,1736317837251,-500.0,0.00021999,2]
[348106934,1736317837261,-242.28967099,0.00021999,2]
[348106935,1736317837271,-500.0,0.00021999,2]
[348106936,1736317837280,-500.0,0.00021999,2]
[348106937,1736317837290,-500.0,0.00021999,2]
[348106938,1736317837300,-199.67835651,0.00022,3]
[348106939,1736317837313,-646.192853,0.00022,3]
[348106940,1736317837325,-2379.499984,0.00022,3]
[348106948,1736317838767,-12617.6653041,0.00022,3]
[348106949,1736317838778,-1515.39973472,0.00022,3]
[348106950,1736317838788,-96588.26953589,0.00022,2]
[348106951,1736317838854,-8219.09863469,0.00022,2]
[348106952,1736317838940,-6806.42689572,0.00022,2]
[348106964,1736317840738,-42169.51331252,0.00022,2]
[348106965,1736317840748,-208.0,0.00022,2]
[348106966,1736317840758,-159.33668963,0.00022087,2]
[348106967,1736317840768,-645.27,0.00022099,3]
[348106968,1736317840782,-1500.0,0.000221,2]
[348106969,1736317840791,-981.28,0.00022101,3]
[348106970,1736317840801,-376.72839266,0.00022101,2]
[348106971,1736317840810,-500.0,0.00022101,3]
[348106972,1736317840821,-500.0,0.00022101,3]
[348106973,1736317840830,-500.0,0.00022101,3]
[348106974,1736317840840,-578.72892673,0.00022101,3]
[348106975,1736317840849,-500.0,0.00022101,3]
[348106976,1736317840859,-500.0,0.00022101,3]
[348106977,1736317840868,-500.0,0.00022101,3]
[348106978,1736317840879,-500.0,0.00022101,3]
[348106979,1736317840888,-500.0,0.00022101,3]
[348106980,1736317840898,-106279.14270546,0.00022102,3]
[348106981,1736317840909,-7243.5,0.00022102,3]
[348106982,1736317840920,-376.55726222,0.00022102,3]
[348106993,1736317843632,-3442.82516203,0.00022102,3]
[348106995,1736317843650,-758.96676626,0.00022102,3]
[348107012,1736318060069,167.937551,0.00013973,2]
[348107013,1736318308697,3000.0,0.00025,120]
[348107016,1736318825143,-196.48382623,0.00020529,2]
[348107017,1736318825168,-1139.39497841,0.00020899,3]
[348107018,1736318826099,-40.49502159,0.00020899,3]
[348107019,1736318826126,-185.378753,0.00020942,2]
[348107020,1736318826151,-1179.89,0.00021173,3]
[348107021,1736318826176,-401.55689709,0.00021447,3]
[348107022,1736318832134,-333.22240714,0.00021447,3]
[348107028,1736318993477,567.0,0.00025,120]
[348107060,1736319032546,-5707.29558905,0.00021478,2]
[348107062,1736319032555,-300.0,0.00021552,2]
[348107064,1736319032565,-500.0,0.00021553,3]
[348107066,1736319032574,-491.98356845,0.00021553,3]
[348107068,1736319032586,-526.81114954,0.00021553,3]
[348107070,1736319032596,-511.69377354,0.00021553,3]
[348107072,1736319032605,-542.96934489,0.00021553,3]
[348107074,1736319032615,-520.81205981,0.00021553,3]
[348107076,1736319032625,-500.0,0.00021553,3]
[348107078,1736319032634,-530.48182227,0.00021553,3]
[348107080,1736319032644,-576.19390616,0.00021553,3]
[348107083,1736319032655,-500.0,0.00021553,3]
[348107085,1736319032666,-500.0,0.00021553,3]
[348107087,1736319032675,-505.99462717,0.00021553,3]
[348107089,1736319032685,-533.3897521,0.00021553,3]
[348107090,1736319032695,-500.0,0.00021553,2]
[348107092,1736319032705,-522.64942995,0.00021553,3]
[348107094,1736319032717,-500.0,0.00021553,3]
[348107096,1736319032726,-268.75745562,0.00021553,3]
[348107097,1736319032735,-516.06001369,0.00021553,3]
[348107099,1736319032745,-500.0,0.00021553,3]
[348107100,1736319032755,-509.11657474,0.00021554,5]
[348107101,1736319032765,-506.36630883,0.00021554,3]
[348107102,1736319032775,-508.02262865,0.00021554,3]
[348107103,1736319032785,-177.85127446,0.00021554,3]
[348107104,1736319032794,-500.0,0.00021554,3]
[348107105,1736319032803,-500.0,0.00021554,3]
[348107106,1736319032813,-500.0,0.00021554,3]
[348107107,1736319032823,-500.0,0.00021554,3]
[348107108,1736319032833,-500.0,0.00021554,3]
[348107109,1736319032842,-573.44,0.00021554,3]
[348107110,1736319032851,-500.0,0.00021554,3]
[348107111,1736319032861,-503.42037028,0.00021554,3]
[348107112,1736319032870,-500.85546341,0.00021554,3]
[348107113,1736319032879,-500.55344391,0.00021554,3]
[348107114,1736319032890,-500.77772592,0.00021554,2]
[348107115,1736319032899,-500.0,0.00021554,3]
[348107116,1736319032909,-504.53448255,0.00021554,3]
[348107117,1736319032919,-500.68227511,0.00021554,3]
[348107118,1736319032929,-500.0,0.00021554,3]
[348107119,1736319032938,-500.0,0.00021554,3]
[348107120,1736319032948,-500.0,0.00021554,3]
[348107121,1736319032958,-500.0,0.00021554,2]
[348107122,1736319032971,-4042.52539364,0.00021554,3]
[348107123,1736319032980,-4042.52539364,0.00021554,3]
[348107124,1736319032990,-568.56,0.00021555,3]
[348107125,1736319033000,-11891.77014219,0.00021678,2]
[348107126,1736319033010,-500.0,0.00021827,3]
[348107127,1736319033019,-500.0,0.00021827,3]
[348107128,1736319033029,-437.50573809,0.00021827,3]
[348107129,1736319033039,-538.3961275,0.00021827,3]
[348107130,1736319033049,-544.32486607,0.00021827,3]
[348107131,1736319033063,-500.0,0.00021827,3]
[348107132,1736319033073,-500.0,0.00021827,3]
[348107133,1736319033232,-500.0,0.00021828,3]
[348107134,1736319033243,-568.56,0.00021829,3]
[348107135,1736319033253,-588.073,0.0002185,2]
[348107136,1736319033263,-500.0,0.00021917,2]
[348107137,1736319033273,-208.0,0.00022,2]
[348107138,1736319033284,-15794.026272,0.00022,2]
[348107139,1736319033295,-587.64428742,0.00022025,2]
[348107140,1736319033305,-1050.95,0.00022099,3]
[348107141,1736319033316,-511.31140957,0.000221,3]
[348107142,1736319033327,-500.0,0.000221,3]
[348107143,1736319033338,-523.03900173,0.000221,3]
[348107144,1736319033347,-2572.7,0.000221,3]
[348107145,1736319033358,-500.0,0.000221,3]
[348107146,1736319033369,-500.0,0.000221,3]
[348107147,1736319033379,-509.84770316,0.000221,3]
[348107148,1736319033389,-500.0,0.000221,3]
[348107149,1736319033399,-308.29297662,0.00022101,3]
[348107150,1736319033409,-173.992,0.00022101,2]
[348107151,1736319033419,-500.0,0.00022101,3]
[348107152,1736319033430,-563.73133439,0.00022101,3]
[348107153,1736319033440,-234.37860506,0.00022101,3]
[348107154,1736319033451,-500.0,0.00022101,3]
[348107155,1736319033464,-678.87,0.00022101,3]
[348107156,1736319033476,-39600.94674464,0.00022102,3]
[348107157,1736319033486,-500.0,0.00022102,3]
[348107158,1736319033496,-568.56,0.00022103,3]
[348107159,1736319033506,-510.50538524,0.00022164,2]
[348107160,1736319033515,-1050.95,0.00022373,3]
[348107161,1736319033526,-2572.7,0.00022374,3]
[348107162,1736319033536,-678.87,0.00022375,3]
[348107163,1736319033546,-649.24,0.00022376,3]
[348107164,1736319033556,-568.56,0.00022377,3]
[348107165,1736319033566,-1050.95,0.00022647,3]
[348107166,1736319033578,-2572.7,0.00022648,3]
[348107167,1736319033587,-678.87,0.00022649,3]
[348107168,1736319033597,-568.56,0.00022651,3]
[348107169,1736319033607,-500.0,0.00022799,2]
[348107170,1736319033618,-500.0,0.00022799,2]
[348107171,1736319033629,-500.0,0.00022799,2]
[348107172,1736319033639,-500.0,0.00022799,2]
[348107173,1736319033650,-210.0,0.000228,14]
[348107174,1736319033660,-210.0,0.000228,12]
[348107175,1736319033670,-210.0,0.000228,8]
[348107176,1736319033680,-210.0,0.000228,7]
[348107177,1736319033690,-210.0,0.000228,6]
[348107178,1736319033700,-195.0,0.000228,5]
[348107179,1736319033711,-195.0,0.000228,7]
[348107180,1736319033726,-201.3771934,0.000228,8]
[348107181,1736319033737,-2988.39160882,0.0002287,2]
[348107182,1736319033748,-206.25363757,0.000229,2]
[348107183,1736319033759,-537.14581932,0.000229,2]
[348107184,1736319033770,-1050.95,0.00022921,3]
[348107185,1736319033780,-2572.7,0.00022922,3]
[348107186,1736319033791,-678.87,0.00022923,3]
[348107187,1736319033800,-568.56,0.00022925,3]
[348107188,1736319033810,-1213.77526725,0.00022929,2]
[348107189,1736319033821,-151.0,0.00022931,7]
[348107190,1736319033831,-151.0,0.00022931,7]
[348107191,1736319033841,-394.0,0.00022931,2]
[348107192,1736319033851,-537.14581913,0.00022934,2]
[348107193,1736319033861,-151.0,0.00022935,7]
[348107194,1736319033871,-537.14581913,0.00022969,2]
[348107195,1736319033881,-192.60002495,0.00022999,2]
[348107196,1736319033890,-3757.4424721,0.00023,7]
[348107197,1736319033900,-234.93,0.00023,2]
[348107198,1736319033910,-876.2498145,0.00023,7]
[348107199,1736319033920,-153.03,0.00023,31]
[348107200,1736319033929,-153.03,0.00023,31]
[348107201,1736319033938,-153.03,0.00023,31]
[348107202,1736319033948,-153.03,0.00023,31]
[348107203,1736319033957,-153.03,0.00023,31]
[348107204,1736319033969,-153.03,0.00023,31]
[348107205,1736319033980,-153.03,0.00023,31]
[348107206,1736319033989,-151.0,0.00023,8]
[348107207,1736319034000,-537.14581913,0.00023003,2]
[348107208,1736319034010,-500.71416595,0.00023014,8]
[348107209,1736319034020,-500.95548623,0.00023015,8]
[348107210,1736319034029,-153.839836,0.00023028,7]
[348107211,1736319034039,-151.0,0.00023028,7]
[348107212,1736319034048,-151.0,0.00023028,7]
[348107213,1736319034058,-151.0,0.00023028,7]
[348107214,1736319034068,-151.0,0.00023028,7]
[348107215,1736319034079,-156.116465,0.00023028,7]
[348107216,1736319034088,-150.21,0.00023028,10]
[348107217,1736319034098,-209.73011,0.00023028,7]
[348107218,1736319034107,-151.0,0.00023028,7]
[348107219,1736319034117,-151.0,0.00023028,7]
[348107220,1736319034126,-150.21,0.00023028,10]
[348107221,1736319034136,-200.61723756,0.00023028,10]
[348107222,1736319034145,-500.0,0.00023028,10]
[348107223,1736319034155,-339.95817684,0.00023028,2]
[348107224,1736319034164,-9680.60580353,0.00023029,3]
[348107225,1736319034189,-500.0,0.00022799,2]
[348107226,1736319034199,-256.15838022,0.00022799,2]
[348107227,1736319034208,-1799.16280378,0.00023029,3]
[348107228,1736319034220,-757.69986736,0.00023029,3]
[348107229,1736319034229,-151.0,0.00023029,7]
[348107230,1736319034239,-151.0,0.00023029,7]
[348107231,1736319034248,-151.0,0.00023029,7]
[348107232,1736319034258,-151.0,0.00023029,7]
[348107233,1736319034268,-151.0,0.00023029,7]
[348107234,1736319034278,-225.250365,0.00023029,7]
[348107235,1736319034287,-151.0,0.00023029,7]
[348107236,1736319034297,-151.0,0.00023029,7]
[348107237,1736319034306,-151.0,0.00023029,7]
[348107238,1736319034316,-151.0,0.00023029,7]
[348107239,1736319034325,-151.0,0.00023029,7]
[348107240,1736319034335,-151.0,0.00023029,7]
[348107241,1736319034344,-151.0,0.00023029,7]
[348107242,1736319034354,-151.0,0.00023029,7]
[348107243,1736319034364,-151.0,0.00023029,7]
[348107244,1736319034373,-151.0,0.00023029,7]
[348107245,1736319034383,-151.0,0.00023029,7]
[348107246,1736319034393,-151.0,0.00023029,7]
[348107247,1736319034403,-151.0,0.00023029,7]
[348107248,1736319034414,-151.0,0.00023029,7]
[348107249,1736319034424,-151.0,0.00023029,7]
[348107250,1736319034434,-151.0,0.00023029,7]
[348107251,1736319034445,-265.843152,0.00023029,7]
[348107252,1736319034455,-4042.52539364,0.00023029,7]
[348107253,1736319034467,-4042.52539364,0.00023029,10]
[348107254,1736319034476,-4042.52539364,0.00023029,7]
[348107255,1736319034487,-4042.52539364,0.00023029,10]
[348107256,1736319034498,-365829.71790358,0.00023029,10]
[348107257,1736319034510,-1289.37980979,0.00023029,10]
[348107258,1736319034523,-556.871966,0.00023029,10]
[348107259,1736319034534,-17821.17196749,0.00023029,10]
[348107260,1736319034549,-957.83,0.00023029,10]
[348107294,1736319037975,-160.34508335,0.00021454,2]
[348107296,1736319037984,-10119.91795963,0.00023029,10]
[348107301,1736319038019,-999.40979684,0.00023029,10]
[348107307,1736319038066,-71094.93613972,0.00023029,10]
[348107317,1736319038304,-13725.64259784,0.00023029,10]
[348107318,1736319038316,-6263.06888745,0.00023029,10]
[348107320,1736319038328,-332.0,0.00023029,10]
[348107496,1736319043419,-160.34508334,0.000217,2]
[348107498,1736319043429,-286.92911585,0.00023029,10]
[348107522,1736319043704,-16600.00000015,0.00023029,10]
[348107524,1736319043716,-414.9999989,0.00023029,10]
[348107526,1736319043733,-1949.99999998,0.00023029,10]
[348107527,1736319043745,-192045.82956275,0.00023029,10]
[348107528,1736319043789,-1662.5,0.00023029,10]
[348107529,1736319043801,-58472.613183,0.00023029,10]
[348107530,1736319043813,-311.5944524,0.00023029,10]
[348107531,1736319043825,-601.87802053,0.00023029,10]
[348107707,1736319046248,-192.60002495,0.00023027,2]
[348107709,1736319046258,-159.16198605,0.00023029,10]
[348107717,1736319046328,-30.33031769,0.00023029,10]
[348108007,1736319069781,169.159621,0.00013973,2]
[348108012,1736320048162,-185.3787545,0.00020895,2]
[348108013,1736320048217,-1168.45923091,0.000209,2]
[348108014,1736320051280,157.492261,0.00013973,2]
[348108015,1736320145088,-490.0,0.000189,2]
[348108016,1736320166160,-74.27261239,0.000189,2]
[348108017,1736320166182,-150.0,0.00019865,2]
[348108018,1736320166203,-327.76,0.00020484,2]
[348108019,1736320166225,-278.62785736,0.00020691,2]
[348108042,1736320232258,-52.91291173,0.00020691,2]
[348108043,1736320232268,-331.54076909,0.000209,2]
[348108044,1736320232278,-1500.0,0.000209,2]
[348108045,1736320232287,-300.0,0.0002155,2]
[348108046,1736320232296,-3208.0,0.0002155,2]
[348108047,1736320232306,-5393.2266243,0.00021552,4]
[348108048,1736320232315,-500.0,0.00021553,3]
[348108049,1736320232324,-500.0,0.00021553,3]
[348108050,1736320232333,-169.54095651,0.00021726,2]
[348108051,1736320232344,-3290.0,0.00021736,2]
[348108052,1736320232353,-500.0,0.00021825,3]
[348108053,1736320232362,-551.76,0.00021825,3]
[348108054,1736320232372,-237.616408,0.00021825,3]
[348108055,1736320232381,-500.74549236,0.00021825,3]
[348108056,1736320232390,-502.03384703,0.00021825,3]
[348108057,1736320232399,-502.01154278,0.00021825,3]
[348108058,1736320232408,-500.0,0.00021825,3]
[348108059,1736320232419,-500.0,0.00021825,3]
[348108060,1736320232429,-500.0,0.00021825,3]
[348108061,1736320232439,-500.0,0.00021825,3]
[348108063,1736320232449,-500.0,0.00021825,3]
[348108065,1736320232458,-501.87225878,0.00021825,3]
[348108067,1736320232467,-500.0,0.00021825,3]
[348108069,1736320232477,-379.39608533,0.00021825,3]
[348108071,1736320232486,-500.0,0.00021825,3]
[348108073,1736320232495,-500.0,0.00021825,3]
[348108075,1736320232505,-360.0,0.00021825,3]
[348108077,1736320232514,-500.0,0.00021825,3]
[348108079,1736320232523,-336.05370775,0.00021825,3]
[348108082,1736320232533,-581.88,0.00021825,3]
[348108084,1736320232542,-500.0,0.00021825,3]
[348108086,1736320232551,-500.0,0.00021825,3]
[348108088,1736320232560,-517.82,0.00021825,3]
[348108090,1736320232569,-500.0,0.00021825,3]
[348108092,1736320232578,-153.26,0.00021825,3]